[Event "FIDE World School-ch G-17 2025"]
[Site "Vrnjacka Banja"]
[Date "2025.03.24"]
[Round "5.5"]
[White "Orazalina, Nursulu"]
[Black "Kusakina, Uliana"]
[Result "0-1"]
[Annotator "NA RC"]
[ECO "B45"]
[WhiteElo "1895"]
[BlackElo "1855"]
[PlyCount "132"]
[EventDate "2025.03.19"]
[EventType "swiss"]
[EventCountry "SRB"]
[SourceTitle "playchess.com"]
[Source "ChessBase"]
[SourceQuality "1"]
[TimeControl "5400+30"]

1. e4 {[%emt 0:00:01]} c5 {[%emt 0:00:21]} 2. Nf3 {[%emt 0:00:05]} e6 {[%emt 0:00:10]} 3. d4 {[%emt 0:00:07]} cxd4 {[%emt 0:00:20]} 4. Nxd4 {[%emt 0:00:07]} Nf6 {[%emt 0:00:12]} 5. Nc3 {[%emt 0:00:07]} Nc6 {[%emt 0:00:06]} 6. Nxc6 {[%emt 0:00:08]} bxc6 {[%emt 0:00:09]} 7. e5 {[%emt 0:00:06]} Nd5 {[%emt 0:00:11]} 8. Ne4 {[%emt 0:00:07]} Qc7 {[%emt 0:00:06]} 9. f4 {[%emt 0:00:11]} Rb8 {[%emt 0:00:16]} 10. Qf3 {[%emt 0:00:25]} c5 {[%emt 0:18:48]} 11. c4 {[%emt 0:04:59]} Nb4 {[%emt 0:04:06]} 12. Bd3 {[%emt 0:00:18]} Bb7 {[%emt 0:06:39]} 13. O-O {[%emt 0:01:23]} d5 {[%emt 0:04:01]} 14. exd6 {[%emt 0:06:21]} Bxd6 {[%emt 0:02:23]} 15. Bb1 {[%emt 0:00:22]} Bxe4 {[%emt 0:23:35]} 16. Qxe4 {[%emt 0:07:07]} Nc6 {[%emt 0:02:28]} 17. Bc2 {[%emt 0:18:10]} Nd4 {[%emt 0:01:47]} 18. Ba4+ {[%emt 0:00:08]} Ke7 {[%emt 0:00:21]} 19. Bd1 {[%emt 0:04:14]} f5 {[%emt 0:00:47]} 20. Qe1 {[%emt 0:07:25]} g5 {[%emt 0:04:04]} 21. b3 {[%emt 0:01:11]} h6 {[%emt 0:06:37]} 22. h3 {[%emt 0:10:39]} Kf6 {[%emt 0:03:35]} 23. Be3 {[%emt 0:03:11]} Rhf8 {[%emt 0:08:54]} 24. Bh5 {[%emt 0:02:41]} e5 {[%emt 0:00:37]} 25. fxg5+ {[%emt 0:02:53]} hxg5 {[%emt 0:00:13]} 26. Qb1 {[%emt 0:03:38]} Qh7 {[%emt 0:01:20]} 27. Bd1 {[%emt 0:07:00]} Rb7 {[%emt 0:04:02]} 28. Bxd4 {[%emt 0:05:02]} cxd4 {[%emt 0:00:28]} 29. Bc2 {[%emt 0:01:44]} Ke6 {[%emt 0:00:31]} 30. g4 {[%emt 0:02:13]} Qxh3 {[%emt 0:00:33]} 31. Bxf5+ {[%emt 0:00:31]} Ke7 {[%emt 0:00:14]} 32. Qe4 {[%emt 0:01:37]} Qg3+ {[%emt 0:00:18]} 33. Qg2 {[%emt 0:00:07]} Qxg2+ {[%emt 0:00:11]} 34. Kxg2 {[%emt 0:00:04]} Rbb8 {[%emt 0:00:31]} 35. Rh1 {[%emt 0:01:57]} Rh8 {[%emt 0:00:10]} 36. Kf3 {[%emt 0:00:26]} Bb4 {[%emt 0:02:57]} 37. Ke4 {[%emt 0:01:51]} Kd6 {[%emt 0:00:29]} 38. Bh7 {[%emt 0:08:08]} Rhf8 {[%emt 0:02:52]} 39. Rh6+ {[%emt 0:00:12]} Kc5 {[%emt 0:00:14]} 40. Bf5 {[%emt 0:00:19]} Bd2 {[%emt 0:01:55]} 41. Rah1 {[%emt 0:01:26]} Rb6 {[%emt 0:01:25]} 42. Rh7 {[%emt 0:01:00]} Ra6 {[%emt 0:00:22]} 43. Rc7+ {[%emt 0:00:34]} Kb4 {[%emt 0:00:22]} 44. Rb7+ {[%emt 0:00:39]} Kc3 {[%emt 0:00:50]} 45. Rh3+ {[%emt 0:00:39]} Be3 {[%emt 0:00:56]} 46. Rh2 {[%emt 0:00:06]} Bd2 {[%emt 0:01:03]} 47. Rh3+ {[%emt 0:00:48]} Be3 {[%emt 0:00:05]} 48. Kxe5 {[%emt 0:00:22]} Re8+ {[%emt 0:00:35]} 49. Kd5 {[%emt 0:00:22]} d3 {[%emt 0:00:16]} 50. c5 {[%emt 0:01:10]} d2 {[%emt 0:00:10]} 51. Rh1 {[%emt 0:00:11]} Rd8+ {[%emt 0:00:48]} 52. Rd7 {[%emt 0:00:40]} Rxd7+ {[%emt 0:00:08]} 53. Bxd7 {[%emt 0:00:06]} Rxa2 {[%emt 0:00:30]} 54. c6 {[%emt 0:00:37]} Bf4 {[%emt 0:00:11]} 55. Bf5 {[%emt 0:01:19]} Rc2 {[%emt 0:00:31]} 56. Rh3+ {[%emt 0:00:34]} Kb2 {[%emt 0:00:08]} 57. Bxc2 {[%emt 0:00:28]} Kxc2 {[%emt 0:00:04]} 58. Rh1 {[%emt 0:00:20]} d1=Q+ {[%emt 0:00:14]} 59. Rxd1 {[%emt 0:00:04]} Kxd1 {[%emt 0:00:06]} 60. b4 {[%emt 0:00:18]} Kc2 {[%emt 0:00:10]} 61. Kc4 {[%emt 0:01:00]} Bg3 {[%emt 0:00:13]} 62. b5 {[%emt 0:00:23]} Bc7 {[%emt 0:00:37]} 63. Kd4 {[%emt 0:00:20]} Kb3 {[%emt 0:00:09]} 64. Kc5 {[%emt 0:00:21]} Ka4 {[%emt 0:00:07]} 65. Kc4 {[%emt 0:00:11]} Bb6 {[%emt 0:00:09]} 66. Kd5 {[%emt 0:00:09]} Kxb5 {[%emt 0:00:09]} 0-1

[Event "FIDE World School-ch G-17 2025"]
[Site "Vrnjacka Banja"]
[Date "2025.03.24"]
[Round "5.6"]
[White "Vojinovic, Anastasija"]
[Black "Chung, Grace Eun-chong"]
[Result "1-0"]
[Annotator "NA RC"]
[ECO "B01"]
[WhiteElo "1857"]
[BlackElo "1538"]
[PlyCount "117"]
[EventDate "2025.03.19"]
[EventType "swiss"]
[EventCountry "SRB"]
[SourceTitle "playchess.com"]
[Source "ChessBase"]
[SourceQuality "1"]
[TimeControl "5400+30"]

1. e4 {[%emt 1:31:00]} d5 {[%emt 0:00:03]} 2. exd5 {[%emt 0:00:00]} Qxd5 {[%emt 0:00:03]} 3. Nc3 {[%emt 0:00:00]} Qd8 {[%emt 0:00:16]} 4. d4 {[%emt 0:00:00]} Nf6 {[%emt 0:00:10]} 5. Bf4 {[%emt 0:00:00]} c6 {[%emt 0:01:41]} 6. Qd2 {[%emt 0:00:00]} Bf5 {[%emt 0:03:20]} 7. f3 {[%emt 0:00:00]} h5 {[%emt 0:03:17]} 8. Bd3 {[%emt 0:00:00]} Bxd3 {[%emt 0:02:16]} 9. Qxd3 {[%emt 0:00:00]} e6 {[%emt 0:02:08]} 10. Nge2 {[%emt 0:00:00]} Be7 {[%emt 0:13:28]} 11. O-O-O {[%emt 0:00:00]} a5 {[%emt 0:02:27]} 12. g4 {[%emt 0:00:00]} g6 {[%emt 0:15:38]} 13. Ne4 {[%emt 0:00:00]} Nd5 {[%emt 0:12:32]} 14. Be5 {[%emt 0:00:00]} f6 {[%emt 0:04:20]} 15. Bxb8 {[%emt 0:00:00]} Qxb8 {[%emt 0:07:33]} 16. Nc5 {[%emt 0:00:00]} Kf7 {[%emt 0:03:19]} 17. Qe4 {[%emt 0:00:00]} Qc8 {[%emt 0:05:37]} 18. Nf4 {[%emt 0:00:00]} Nxf4 {[%emt 0:01:23]} 19. Qxf4 {[%emt 0:00:00]} b6 {[%emt 0:03:07]} 20. Ne4 {[%emt 0:00:00]} Kg7 {[%emt 0:02:11]} 21. g5 {[%emt 0:01:52]} fxg5 {[%emt 0:00:57]} 22. Qe5+ {[%emt 0:01:45]} Kh6 {[%emt 0:02:17]} 23. Rhg1 {[%emt 0:00:53]} Qb8 {[%emt 0:03:48]} 24. Nxg5 {[%emt 0:02:50]} Rf8 {[%emt 0:01:37]} 25. Nxe6 {[%emt 0:03:05]} Qxe5 {[%emt 0:02:52]} 26. dxe5 {[%emt 0:00:06]} Rxf3 {[%emt 0:00:45]} 27. Rd7 {[%emt 0:00:18]} Bc5 {[%emt 0:00:52]} 28. Nxc5 {[%emt 0:00:14]} bxc5 {[%emt 0:00:19]} 29. Re1 {[%emt 0:01:09]} Re8 {[%emt 0:00:46]} 30. e6 {[%emt 0:00:45]} Rf6 {[%emt 0:02:17]} 31. Rd6 {[%emt 0:01:07]} h4 {[%emt 0:02:20]} 32. Rxc6 {[%emt 0:00:21]} Rf5 {[%emt 0:00:25]} 33. e7 {[%emt 0:00:34]} Rf7 {[%emt 0:00:49]} 34. Ree6 {[%emt 0:00:42]} Rg7 {[%emt 0:00:17]} 35. Kd2 {[%emt 0:00:28]} Rexe7 {[%emt 0:00:18]} 36. Rxe7 {[%emt 0:00:08]} Rxe7 {[%emt 0:00:03]} 37. Rxc5 {[%emt 0:00:06]} g5 {[%emt 0:00:54]} 38. h3 {[%emt 0:01:32]} Rf7 {[%emt 0:01:06]} 39. Ke2 {[%emt 0:00:30]} Re7+ {[%emt 0:01:16]} 40. Kf3 {[%emt 0:00:19]} Rf7+ {[%emt 0:00:08]} 41. Kg2 {[%emt 0:00:34]} Re7 {[%emt 0:00:44]} 42. Rc3 {[%emt 0:00:26]} Re2+ {[%emt 0:00:25]} 43. Kf3 {[%emt 0:00:33]} Rh2 {[%emt 0:00:09]} 44. Ke4 {[%emt 0:00:34]} Re2+ {[%emt 0:00:18]} 45. Kf5 {[%emt 0:00:28]} Rf2+ {[%emt 0:00:09]} 46. Ke5 {[%emt 0:00:21]} Re2+ {[%emt 0:00:09]} 47. Kd5 {[%emt 0:00:17]} Rf2 {[%emt 0:00:24]} 48. a3 {[%emt 0:00:34]} Rg2 {[%emt 0:00:19]} 49. b4 {[%emt 0:00:14]} axb4 {[%emt 0:00:18]} 50. axb4 {[%emt 0:00:05]} Rg3 {[%emt 0:00:26]} 51. Rc6+ {[%emt 0:01:33]} Kh5 {[%emt 0:00:40]} 52. b5 {[%emt 0:00:05]} Rxh3 {[%emt 0:00:19]} 53. b6 {[%emt 0:00:40]} Rf3 {[%emt 0:00:45]} 54. b7 {[%emt 0:00:33]} Rf5+ {[%emt 0:00:23]} 55. Kc4 {[%emt 0:00:34]} Rf4+ {[%emt 0:01:00]} 56. Kc3 {[%emt 0:00:08]} Rf3+ {[%emt 0:01:48]} 57. Kb2 {[%emt 0:00:38]} h3 {[%emt 0:01:02]} 58. b8=Q {[%emt 0:00:07]} Kg4 {[%emt 0:00:26]} 59. Qh2 {[%emt 0:00:37]} 1-0